bitfinex/quotes_ETHUSD_20220731
["timestamp","ask_amount","ask_price","bid_price","bid_amount"]
[1659308403420,2.89804672,1684.4,1684.2,0.059352]
[1659308403621,2.89804672,1684.4,1684.0,0.17432047]
[1659308403622,2.89804672,1684.3,1684.0,0.17432047]
[1659308403867,3.34324672,1684.2,1683.7,0.05]
[1659308404066,0.05,1684.4,1683.8,0.34471435]
[1659308404275,1.0,1684.5,1683.8,4.79645435]
[1659308404276,1.05,1684.5,1683.8,4.79645435]
[1659308404435,2.89804672,1684.4,1683.8,5.44930575]
[1659308404766,13.07024672,1684.4,1683.8,2.12551435]
[1659308404938,12.62504672,1684.2,1683.6,0.05]
[1659308405139,2.89804672,1684.1,1683.7,0.0593688]
[1659308405631,0.2,1684.0,1683.7,0.0593688]
[1659308405829,2.89804672,1683.9,1683.7,0.0593688]
[1659308406029,12.82504672,1683.9,1683.5,0.0593781]
[1659308406232,2.89804672,1683.8,1683.5,0.0593781]
[1659308406479,2.89804672,1683.8,1683.5,0.3562287]
[1659308406680,2.89804672,1683.8,1683.5,0.0593781]
[1659308407174,6.42804672,1683.6,1683.2,0.1093878]
[1659308407504,2.89804672,1683.4,1683.2,0.0593878]
[1659308407656,2.89804672,1683.4,1683.0,1.48476]
[1659308407857,3.7,1683.7,1683.0,1.48476]
[1659308407858,0.05,1683.7,1683.0,1.48476]
[1659308408058,0.05,1683.8,1683.1,4.12148436]
[1659308408259,7.8131,1683.9,1683.1,4.12148436]
[1659308408260,2.89804672,1683.7,1683.3,1.4844]
[1659308409201,0.05,1683.9,1683.4,3.9454]
[1659308409369,0.34755842,1684.1,1683.5,10.76449435]
[1659308409560,3.19560514,1684.1,1683.6,0.4454]
[1659308409789,3.19560514,1684.1,1683.7,4.8076438]
[1659308409953,3.19560514,1684.1,1683.7,1.8399538]
[1659308410155,3.19560514,1684.1,1683.8,0.34471435]
[1659308410390,0.29755842,1684.1,1683.8,2.42531435]
[1659308410694,0.29755842,1684.1,1683.8,0.64471435]
[1659308410991,0.29755842,1684.1,1683.8,3.64471435]
[1659308411199,0.29755842,1684.1,1683.8,0.94149435]
[1659308411554,3.19560514,1684.1,1683.8,0.94149435]
[1659308412886,3.39560514,1684.1,1683.8,3.94149435]
[1659308413074,2.89804672,1684.0,1683.7,0.0593538]
[1659308413264,12.62504672,1683.9,1683.5,0.2365849]
[1659308413464,12.62504672,1683.9,1683.5,0.0593808]
[1659308413465,2.89804672,1683.8,1683.5,0.0593808]
[1659308413684,0.2,1683.7,1683.5,0.0593808]
[1659308413891,2.89804672,1683.6,1683.1,0.05]
[1659308414129,0.2,1683.5,1682.9,1.42959281]
[1659308414335,2.89804672,1683.4,1682.9,1.37959281]
[1659308414502,2.89804672,1683.4,1682.9,1.72430716]
[1659308414711,2.89804672,1683.4,1682.9,3.50593716]
[1659308415115,2.89804672,1683.4,1682.9,3.86226966]
[1659308415532,2.89804672,1683.4,1682.9,1.78370126]
[1659308415908,2.84804672,1683.4,1682.9,1.78370126]
[1659308416126,9.04504672,1683.4,1682.9,2.08066436]
[1659308416449,2.89804672,1683.3,1682.9,2.08066436]
[1659308416810,3.09804672,1683.3,1682.9,3.56547436]
[1659308417150,2.89804672,1683.2,1682.9,1.43898691]
[1659308417884,12.62504672,1683.2,1682.9,1.37959281]
[1659308418052,9.09504672,1683.1,1682.9,1.37959281]
[1659308418250,2.89804672,1683.0,1682.9,1.37959281]
[1659308418878,9.09504672,1683.0,1682.9,1.43899561]
[1659308419258,2.89804672,1683.0,1682.9,1.43899561]
[1659308419576,2.89804672,1683.0,1682.9,1.73899561]
[1659308419785,2.89804672,1683.0,1682.9,1.67959281]
[1659308419945,2.89804672,1683.0,1682.9,1.37959281]
[1659308420386,2.89804672,1683.1,1682.9,0.17959281]
[1659308420573,2.89804672,1683.1,1682.9,1.95727786]
[1659308420746,0.34755842,1683.4,1682.9,1.95727786]
[1659308420954,2.89804672,1683.3,1683.0,0.3562857]
[1659308421167,6.39804672,1683.3,1683.0,0.0593809]
[1659308421373,2.89804672,1683.2,1683.0,0.0593809]
[1659308422698,6.39804672,1683.2,1682.8,0.0594042]
[1659308422866,2.89804672,1683.1,1682.8,0.0594042]
[1659308423249,2.89804672,1683.1,1682.8,0.23538856]
[1659308423693,9.92804672,1683.1,1682.8,0.23538856]
[1659308423899,2.89804672,1683.0,1682.8,0.23538856]
[1659308424755,2.89804672,1683.0,1682.8,0.3563942]
[1659308424957,2.89804672,1683.0,1682.8,1.8413142]
[1659308425483,2.89804672,1683.0,1682.8,0.0594042]
[1659308426017,9.09504672,1683.0,1682.8,0.0594042]
[1659308426298,3.53,1683.1,1682.6,0.17590744]
[1659308426299,12.62504672,1682.9,1682.6,0.17590744]
[1659308426469,12.62504672,1682.9,1682.3,0.05]
[1659308426470,9.09504672,1682.8,1682.3,0.05]
[1659308426667,9.09504672,1682.5,1682.1,0.05]
[1659308427006,2.89804672,1682.4,1682.1,1.2005713]
[1659308427211,2.89804672,1682.4,1682.0,0.0594325]
[1659308427366,2.89804672,1682.4,1682.1,1.20057142]
[1659308427565,2.89804672,1682.4,1682.0,0.0594325]
[1659308427890,2.89804672,1682.4,1682.1,1.20057152]
[1659308428270,6.197,1682.3,1682.1,1.20057155]
[1659308428472,2.89804672,1682.2,1682.1,1.20057155]
[1659308428672,2.89804672,1682.2,1681.8,0.0594371]
[1659308428919,9.09504672,1682.2,1682.1,1.20057155]
[1659308429214,9.09504672,1682.2,1681.7,0.227974]
[1659308429395,2.89804672,1682.1,1681.7,0.177974]
[1659308429569,2.89804672,1682.1,1681.5,6.7357425]
[1659308429570,2.89804672,1682.1,1681.8,1.20078581]
[1659308430008,2.89804672,1682.1,1681.9,1.20071442]
[1659308430210,6.42804672,1682.1,1681.9,1.20071442]
[1659308430369,6.42804672,1682.1,1681.5,3.67404519]
[1659308430370,2.89804672,1682.0,1681.7,0.0594347]
[1659308432772,17.6005,1682.3,1681.8,4.80159435]
[1659308432773,0.05,1682.3,1681.8,4.80159435]
[1659308433023,0.05,1682.5,1681.9,3.3]
[1659308433226,2.89804672,1682.4,1682.0,0.0594211]
[1659308433799,16.12504672,1682.3,1681.8,3.3]
[1659308434024,2.89804672,1682.2,1681.8,0.47598436]
[1659308434215,2.89804672,1682.0,1681.8,0.17598436]
[1659308434389,12.59504672,1682.0,1681.5,0.17549645]
[1659308434590,2.89804672,1681.9,1681.4,8.1353]
[1659308434812,2.89804672,1682.0,1681.5,0.47318416]
[1659308434973,2.89804672,1682.0,1681.5,4.71623416]
[1659308435176,2.89804672,1682.0,1681.5,5.647233]
[1659308435401,2.89804672,1682.0,1681.6,4.5166608]
[1659308435704,2.89804672,1682.0,1681.7,3.5971642]
[1659308435914,2.89804672,1682.0,1681.7,3.77314856]
[1659308436074,2.89804672,1682.0,1681.8,1.66173436]
[1659308436279,2.89804672,1682.0,1681.8,1.72116806]
[1659308436479,2.89804672,1682.0,1681.9,3.67598436]
[1659308436719,2.89804672,1682.0,1681.9,6.67598436]
[1659308436889,2.89804672,1682.2,1681.9,6.67598436]
[1659308437217,2.89804672,1682.3,1682.0,4.96161436]
[1659308437374,2.89804672,1682.3,1682.0,5.02104166]
[1659308437574,2.89804672,1682.3,1682.0,3.53541166]
[1659308437774,2.89804672,1682.3,1682.0,0.53541166]
[1659308438278,2.89804672,1682.3,1682.0,3.3594273]
[1659308438502,2.89804672,1682.3,1682.0,0.3594273]
[1659308439590,12.62504672,1682.3,1682.0,0.0594273]
[1659308439786,2.89804672,1682.2,1682.0,0.0594273]
[1659308440176,2.89804672,1682.2,1682.0,1.5450873]
[1659308440425,2.89804672,1682.2,1682.0,0.3565601]
[1659308440865,2.89544682,1682.2,1682.0,0.3565601]
[1659308441227,2.89544682,1682.2,1681.9,3.64471435]
[1659308441432,2.89544682,1682.2,1681.9,0.34471435]
[1659308441623,2.89544682,1682.2,1681.9,0.52434551]
[1659308442423,2.89544682,1682.2,1681.9,0.47434551]
[1659308442663,2.89544682,1682.2,1681.9,0.17963116]
[1659308442849,2.89544682,1682.2,1681.8,0.0594388]
[1659308445302,2.89544682,1682.2,1681.9,1.48575]
[1659308445469,2.89544682,1682.2,1681.9,1.782889]
[1659308445668,2.89544682,1682.2,1682.0,0.0594289]
[1659308447073,12.62504672,1682.1,1681.6,0.05]
[1659308447315,16.12504672,1682.0,1681.4,0.22493401]
[1659308447487,2.89804672,1681.9,1681.4,0.29471435]
[1659308447684,2.89804672,1681.9,1681.5,0.2972]
[1659308447916,3.19560514,1681.9,1681.4,0.35416455]
[1659308448103,2.89804672,1681.8,1681.4,0.35416455]
[1659308448305,2.89804672,1681.8,1681.5,1.78316]
[1659308448745,0.29755842,1681.9,1681.6,0.29471435]
[1659308448905,0.29755842,1681.9,1681.7,1.48574]
[1659308449104,3.19560514,1681.9,1681.7,2.02115296]
[1659308449349,3.19560514,1681.9,1681.7,5.02115296]
[1659308449543,3.19560514,1681.9,1681.8,0.17598436]
[1659308450112,0.29755842,1681.9,1681.7,0.953752]
[1659308450347,0.29755842,1681.9,1681.7,9.896812]
[1659308450523,0.29755842,1681.9,1681.7,6.896812]
[1659308450850,3.14560514,1681.9,1681.8,3.0]
[1659308451012,3.14560514,1681.9,1681.7,0.0594286]
[1659308451217,2.89804672,1681.8,1681.7,0.0594286]
[1659308452691,2.89804672,1681.8,1681.7,0.3566251]
[1659308453071,2.89804672,1681.8,1681.7,0.0594286]
[1659308454245,0.24755842,1681.9,1681.7,0.0594286]
[1659308454456,0.24755842,1681.9,1681.8,2.97132]
[1659308454687,0.24755842,1681.9,1681.7,2.1397011]
[1659308454993,3.14560514,1681.9,1681.7,2.7368511]
[1659308455148,3.14560514,1681.9,1681.8,3.0]
[1659308455345,3.14560514,1681.9,1681.7,0.0594286]
[1659308455545,2.89804672,1681.8,1681.4,3.359452]
[1659308456166,2.89804672,1681.8,1681.5,1.78324]
[1659308456983,2.89804672,1681.8,1681.5,0.2972]
[1659308457152,2.89804672,1681.8,1681.4,3.6566773]
[1659308457153,2.89804672,1681.8,1681.4,3.359452]
[1659308457883,2.89804672,1681.8,1681.5,6.24099]
[1659308458080,2.89804672,1681.8,1681.5,1.78328]
[1659308458468,2.89804672,1681.8,1681.5,0.29721]
[1659308459671,2.89804672,1681.8,1681.5,1.78337]
[1659308460643,2.89804672,1681.8,1681.4,3.6566826]
[1659308461061,2.89804672,1681.8,1681.5,0.2971736]
[1659308461239,2.89804672,1681.8,1681.6,0.3566449]
[1659308461413,2.89804672,1681.8,1681.6,0.0594449]
[1659308462357,16.57094672,1681.7,1681.6,0.0594449]
[1659308462521,16.57094672,1681.7,1681.3,11.90249473]
[1659308462724,12.59504672,1681.5,1681.3,11.90249473]
[1659308462933,2.89804672,1681.4,1681.3,11.90249473]
[1659308463132,12.62504672,1681.4,1681.3,0.18249473]
[1659308463475,12.62504672,1681.4,1680.9,13.25661]
[1659308463626,2.89804672,1681.3,1680.9,13.2660772]
[1659308463830,2.89804672,1681.3,1681.0,0.47330436]
[1659308464327,2.89804672,1681.3,1681.1,0.0594651]
[1659308464529,16.57104672,1681.2,1680.7,0.05]
[1659308464775,16.57104672,1681.2,1680.6,11.7794814]
[1659308464776,0.2,1681.0,1680.6,11.7794814]
[1659308464957,9.29504672,1681.0,1680.6,11.72]
[1659308465163,3.5,1680.8,1680.3,10.97825023]
[1659308465470,3.5,1680.6,1680.3,0.17685023]
[1659308465677,2.89804672,1680.5,1680.0,0.35]
[1659308465838,2.89804672,1680.5,1680.1,0.0594954]
[1659308465839,0.04999999,1680.4,1680.1,0.0594954]
[1659308466029,2.89804672,1680.3,1680.1,0.0594954]
[1659308466467,2.89804672,1680.3,1680.1,0.356903]
[1659308467067,2.89804672,1680.3,1680.1,0.0594954]
[1659308467581,2.89804672,1680.3,1680.0,0.83411133]
[1659308468329,3.14804671,1680.3,1680.0,0.53939698]
[1659308468586,2.89804672,1680.2,1680.0,0.53939698]
[1659308469026,2.89804672,1680.2,1680.0,0.3]
[1659308469227,3.09804672,1680.2,1680.0,0.3]
[1659308469427,2.89804672,1680.1,1680.0,0.3]
[1659308470680,2.89804672,1680.1,1680.0,0.89471435]
[1659308470879,2.89804672,1680.1,1680.0,3.89471435]
[1659308471361,2.89804672,1680.1,1680.0,0.3]
[1659308471916,12.82504672,1680.1,1680.0,0.3]
[1659308472095,10.37434672,1680.1,1680.0,0.3]
[1659308472265,10.32804672,1680.1,1680.0,0.3]
[1659308472579,10.77434672,1680.1,1680.0,0.3]
[1659308472776,3.34434672,1680.1,1680.0,0.5811]
[1659308472978,0.05,1680.5,1680.0,0.5811]
[1659308473203,0.4462,1680.7,1680.1,3.67598436]
[1659308473204,0.05,1680.7,1680.1,3.67598436]
[1659308473414,0.05,1680.9,1680.2,7.8426967]
[1659308473577,7.19047966,1681.6,1680.2,7.8426967]
[1659308473578,0.05,1681.0,1680.5,4.45969]
[1659308473783,0.05,1681.2,1680.6,0.4462]
[1659308473998,7.03,1681.5,1680.6,0.4462]
[1659308473999,0.05,1681.4,1680.7,0.29733]
[1659308474322,0.05,1681.4,1680.6,3.7094781]
[1659308474323,13.227,1681.3,1680.6,3.7094781]
[1659308474525,13.227,1681.3,1680.5,5.9856]
[1659308474526,9.727,1680.7,1680.5,0.05]
[1659308474698,9.727,1680.7,1680.1,0.64565065]
[1659308474699,24.6732,1680.6,1680.1,0.64565065]
[1659308474899,9.727,1680.4,1680.1,0.64565065]
[1659308475104,6.197,1680.2,1680.0,0.0001]
[1659308475291,1.0,1680.3,1680.0,0.0001]
[1659308475499,0.05,1680.6,1680.0,3.5001]
[1659308475730,3.6734,1680.9,1680.1,0.74372]
[1659308475731,0.05,1680.7,1680.1,0.74372]
[1659308476025,3.2773,1680.9,1680.2,0.2983174]
[1659308476325,3.27729999,1680.9,1680.2,0.2983174]
[1659308476529,3.27729999,1680.9,1680.2,0.9525771]
[1659308476711,3.27729999,1680.9,1680.2,1.07170176]
[1659308476915,3.27729999,1680.9,1680.3,0.29738]
[1659308477090,0.04999999,1680.9,1680.2,3.8957174]
[1659308477283,0.04999999,1680.9,1680.4,0.0594788]
[1659308477284,0.2,1680.7,1680.4,0.0594788]
[1659308477503,0.04999999,1680.6,1680.4,0.0594788]
[1659308477698,0.04999999,1680.6,1680.2,0.5983174]
[1659308479124,9.727,1680.5,1680.1,0.3569349]
[1659308479333,9.727,1680.5,1680.0,0.0001]
[1659308479749,3.7,1680.3,1680.0,0.0001]
[1659308479952,0.4,1680.1,1680.0,0.0001]
[1659308480171,3.29804672,1680.1,1680.0,0.0001]
[1659308480549,2.99804672,1680.1,1680.0,0.0001]
[1659308480879,2.89804672,1680.1,1680.0,0.0001]
[1659308481373,10.727,1680.4,1680.0,0.0001]
[1659308481374,3.89804672,1680.4,1680.0,0.3001]
[1659308481535,3.0487,1680.7,1680.3,1.5871]
[1659308481536,3.0987,1680.7,1680.3,1.5871]
[1659308481780,4.58,1680.9,1680.3,1.8871]
[1659308481978,1.0,1680.9,1680.4,2.08163]
[1659308482192,8.111,1681.1,1680.5,1.58655]
[1659308482392,0.00263684,1681.1,1680.8,0.1]
[1659308482615,0.00263684,1681.1,1680.9,0.3]
[1659308482785,0.00263684,1681.1,1681.0,4.181]
[1659308483117,12.0239,1681.8,1681.0,4.181]
[1659308483118,0.05,1681.5,1681.3,0.3]
[1659308483333,8.0608,1682.2,1681.4,0.3971668]
[1659308483334,0.05,1681.9,1681.4,0.3971668]
[1659308483499,2.0,1682.7,1681.4,0.3971668]
[1659308483500,0.05,1682.1,1681.8,5.181]
[1659308483696,0.05,1682.4,1681.9,3.6]
[1659308483905,7.615,1682.6,1681.9,5.0851]
[1659308483906,0.05,1682.6,1681.9,5.0851]
[1659308484088,0.05,1682.7,1681.9,5.26108436]
[1659308484291,3.55,1682.8,1682.2,1.48506]
[1659308484528,3.54999999,1682.8,1682.2,2.08506]
[1659308484834,13.27699999,1682.8,1682.2,0.77598436]
[1659308484974,13.27699999,1682.8,1682.2,0.3]
[1659308485174,13.27699999,1682.8,1682.0,0.45]
[1659308485509,3.5,1682.3,1682.0,0.62881732]
[1659308485711,3.5,1682.1,1681.7,0.05]
[1659308486035,2.72458461,1682.2,1681.4,0.05]
[1659308486036,0.1,1681.8,1681.4,0.05]
[1659308486206,0.1,1681.8,1681.2,7.7417]
[1659308486410,0.04999999,1681.7,1681.2,7.7417]
[1659308486729,0.1,1681.5,1681.1,0.0594591]
[1659308486922,0.1,1681.2,1681.1,0.0594591]
[1659308487128,0.34755842,1681.2,1680.8,0.0594727]
[1659308487834,0.04999999,1681.1,1680.8,0.0594727]
[1659308488438,2.94804671,1681.1,1680.8,0.0594727]
[1659308489013,0.3,1680.9,1680.5,0.0094727]
[1659308489214,6.39804672,1681.0,1680.4,7.7417]
[1659308489215,2.99804672,1680.8,1680.4,7.7417]
[1659308489408,2.99804672,1680.8,1680.2,3.1167727]
[1659308489409,2.89804672,1680.7,1680.2,3.1167727]
[1659308489745,2.89804672,1680.7,1680.2,0.0594894]
[1659308490056,2.89804672,1680.7,1680.2,0.3569094]
[1659308490355,0.1,1680.6,1680.2,0.3569094]
[1659308490540,2.99804672,1680.6,1680.2,0.3569094]
[1659308490929,2.89804672,1680.6,1680.2,0.3569094]
[1659308491547,2.89804672,1680.6,1680.2,0.3594894]
[1659308491961,2.89804672,1680.6,1680.2,0.6594894]
[1659308492116,2.89804672,1680.6,1680.2,0.3594894]
[1659308492566,0.1,1680.5,1680.2,0.3594894]
[1659308492852,0.1,1680.3,1680.2,0.3594894]
[1659308493089,2.99804672,1680.3,1680.2,0.0594894]
[1659308493504,2.99804672,1680.3,1680.0,0.0001]
[1659308493505,3.181,1680.1,1680.0,0.0001]
[1659308493713,6.07904672,1680.1,1680.0,0.0001]
[1659308494011,3.55,1680.5,1680.0,0.5811]
[1659308494012,0.05,1680.5,1680.0,0.5811]
[1659308494176,2.89804672,1680.4,1680.0,1.05454436]
[1659308494361,2.94804672,1680.7,1680.2,0.1]
[1659308494561,2.89804672,1680.7,1680.2,1.6462829]
[1659308494778,2.89804672,1680.8,1680.2,5.2436429]
[1659308494973,2.94804672,1680.9,1680.3,0.4463]
[1659308495195,2.89804672,1680.9,1680.3,0.29733]
[1659308495361,2.89804672,1680.8,1680.3,0.59733]
[1659308495560,2.89804672,1680.8,1680.3,0.8947164]
[1659308495862,3.04804671,1680.8,1680.3,3.77337076]
[1659308496099,2.89804672,1680.7,1680.3,3.3]
[1659308496269,2.89804672,1680.7,1680.4,3.0]
[1659308496858,0.3,1680.3,1680.1,0.05]
[1659308497014,2.89804672,1680.2,1680.0,0.0001]
[1659308497370,2.89804672,1680.4,1680.0,0.0001]
[1659308497562,0.05,1680.7,1680.3,0.1]
[1659308497777,3.5834,1681.1,1680.3,0.1]
[1659308497778,0.24755842,1680.5,1680.3,0.1]
[1659308497965,0.24755842,1680.5,1680.4,4.82562615]
[1659308498163,0.24755842,1680.5,1680.4,5.42562615]
[1659308498404,0.05,1680.9,1680.8,4.181]
[1659308498565,0.446,1681.3,1680.9,0.29727]
[1659308498566,0.05,1681.3,1680.9,0.29727]
[1659308498781,2.89804672,1681.2,1681.0,0.0594635]
[1659308499093,9.19504672,1681.1,1680.9,3.3]
[1659308499311,2.89804672,1681.0,1680.9,0.3]
[1659308499467,2.89804672,1681.0,1680.7,0.0594783]
[1659308499669,0.681,1680.8,1680.7,0.0594783]
[1659308499867,3.57904672,1680.8,1680.7,0.0594783]
[1659308500648,2.89804672,1680.8,1680.7,0.0594783]
[1659308501036,6.74804671,1680.8,1680.3,0.05]
[1659308501349,3.34424672,1680.7,1680.1,0.1094999]
[1659308501552,2.89804672,1680.6,1680.1,0.0594999]
[1659308501702,12.62504672,1680.5,1680.1,0.0594999]
[1659308502052,0.681,1680.2,1680.1,0.0594999]
[1659308502222,3.57904672,1680.2,1680.1,0.0594999]
[1659308502426,11.1133,1680.1,1679.7,0.05]
[1659308502636,11.1133,1680.1,1679.4,0.05]
[1659308502637,2.89804672,1679.9,1679.4,0.05]
[1659308502934,2.89804672,1680.0,1679.6,1.48751]
[1659308503165,2.89804672,1680.0,1679.6,0.3570422]
[1659308503443,2.89804672,1680.0,1679.6,0.48302656]
[1659308503650,2.89804672,1680.0,1679.6,1.13330332]
[1659308504738,2.94804671,1680.1,1679.6,1.13330332]
[1659308504919,2.94804671,1680.1,1679.7,0.29749]
[1659308505339,2.94804671,1680.1,1679.8,2.97466]
[1659308505651,2.94804671,1680.1,1679.8,3.27466]
[1659308505957,2.94804671,1680.1,1679.9,0.6569908]
[1659308506317,0.05,1680.4,1680.3,0.681]
[1659308506507,3.5,1680.8,1680.3,0.4]
[1659308506508,0.05,1680.8,1680.3,0.4]
[1659308506709,0.05,1681.0,1680.6,0.1]
[1659308506960,3.2522,1681.1,1680.6,0.1]
[1659308507322,10.2731,1681.0,1680.6,0.0594703]
[1659308507547,3.8,1680.7,1680.6,0.0594703]
[1659308507851,3.8,1680.7,1680.2,0.29741]
[1659308507852,0.3,1680.6,1680.2,0.64741]
[1659308508046,0.2,1680.6,1680.2,0.59741]
[1659308508289,19.1821,1680.9,1680.3,0.3]
[1659308508409,1.0,1680.9,1680.4,0.29736]
[1659308508730,0.496,1681.1,1680.5,0.60188799]
[1659308508952,0.446,1681.1,1680.5,0.60188799]
[1659308509104,0.2,1681.0,1680.5,0.3]
[1659308509453,9.09504672,1680.9,1680.5,0.3]
[1659308509746,16.32504672,1680.8,1680.6,0.0594771]
[1659308509945,2.89804672,1680.7,1680.6,0.0594771]
[1659308510310,2.89804672,1680.7,1680.3,0.0594972]
[1659308510311,9.29504672,1680.7,1680.3,0.0594972]
[1659308510513,6.39804672,1680.5,1680.0,0.05]
[1659308510861,2.89804672,1680.4,1679.9,0.2975]
[1659308511214,2.94804671,1680.4,1679.9,0.2975]
[1659308511431,2.89804672,1680.3,1679.9,0.2975]
[1659308512108,2.89804672,1680.3,1680.0,0.059504]
[1659308512513,6.39804672,1680.3,1680.0,0.059504]
[1659308512823,2.89804672,1680.2,1680.0,0.059504]
[1659308513222,2.94804671,1680.2,1680.0,0.059504]
[1659308513554,2.89804672,1680.1,1679.8,0.41677742]
[1659308514124,2.89804672,1680.1,1679.8,0.71677742]
[1659308514560,6.42804672,1680.1,1679.8,0.359518]
[1659308514770,2.84804672,1680.0,1679.8,0.359518]
[1659308515064,0.4962,1680.4,1680.0,1.78467]
[1659308515222,2.89804672,1680.3,1680.0,3.29744]
[1659308515421,2.89804672,1680.3,1680.0,3.59744]
[1659308515647,2.89804672,1680.3,1680.0,0.59744]
[1659308515857,2.89804672,1680.3,1680.0,0.3]
[1659308515858,12.82504672,1680.2,1680.0,0.3]
[1659308516043,12.82504672,1680.2,1679.9,0.0594892]
[1659308516044,16.12504672,1680.1,1679.9,0.0594892]
[1659308516243,3.09804672,1680.0,1679.9,0.0594892]
[1659308517078,3.09804672,1680.0,1679.7,0.0595217]
[1659308517079,3.54434672,1680.0,1679.7,0.0595217]
[1659308517376,2.89804672,1679.9,1679.7,0.0595217]
[1659308517534,16.12504672,1679.9,1679.5,0.0595291]
[1659308517735,2.89804672,1679.8,1679.5,0.0595291]
[1659308518826,2.89804672,1679.9,1679.5,1.5472791]
[1659308519082,4.55,1680.1,1679.5,1.5472791]
[1659308519083,4.9463,1680.1,1679.6,0.29755]
[1659308519369,2.89804672,1680.0,1679.7,1.48764]
[1659308519622,2.89804672,1680.0,1679.7,1.78764]
[1659308519828,2.89804672,1680.0,1679.7,1.8471464]
[1659308520028,2.89804672,1680.0,1679.7,2.1446664]
[1659308520185,3.89804672,1680.1,1679.8,0.5950466]
[1659308520387,3.89804672,1680.1,1679.8,0.90919066]
[1659308520781,3.89804672,1680.1,1679.8,0.80919066]
[1659308520983,2.89804672,1680.0,1679.8,0.80919066]
[1659308521225,2.89804672,1680.0,1679.7,0.3595064]
[1659308521823,2.89804672,1680.0,1679.7,0.6570865]
[1659308522101,2.89804672,1680.0,1679.7,0.3595064]
[1659308522335,12.62504672,1680.0,1679.7,0.3595064]
[1659308522531,2.89804672,1679.9,1679.7,0.0595064]
[1659308522819,3.34444672,1679.9,1679.7,0.0595064]
[1659308523026,2.89804672,1679.8,1679.7,0.0595064]
[1659308523190,2.89804672,1679.9,1679.7,0.0595064]
[1659308524908,6.39804672,1679.9,1679.7,0.0595064]
[1659308525109,2.89804672,1679.8,1679.7,0.0595064]
[1659308525356,2.94804671,1679.8,1679.7,0.0595064]
[1659308525555,3.39444671,1679.8,1679.7,0.0595064]
[1659308525741,2.94804671,1679.8,1679.7,0.0595064]
[1659308526117,2.89804672,1679.8,1679.7,0.0595064]
[1659308528281,2.89804672,1679.8,1679.7,0.0005064]
[1659308528282,12.82504672,1679.8,1679.7,0.0005064]
[1659308528639,2.89804672,1679.8,1679.7,0.0005064]
[1659308530044,12.62504672,1679.8,1679.7,0.0005064]
[1659308530274,6.62804672,1679.8,1679.7,0.0005064]
[1659308530478,6.42804672,1679.8,1679.7,0.0005064]
[1659308530650,2.89804672,1679.8,1679.7,0.0005064]
[1659308531475,12.82504672,1679.8,1679.7,0.0005064]
[1659308531679,13.27144672,1679.8,1679.7,0.0005064]
[1659308532587,16.77144672,1679.8,1679.3,0.3476673]
[1659308532776,11.897,1679.2,1679.1,0.05]
[1659308533100,13.1736,1679.1,1678.7,0.05]
[1659308533265,2.89804672,1678.9,1678.7,0.2977901]
[1659308533448,3.94804671,1678.9,1678.3,0.67206995]
[1659308533648,2.89804672,1678.8,1678.5,1.48871]
[1659308533877,2.89804672,1678.8,1678.5,1.38871]
[1659308534088,2.94804671,1678.9,1678.7,0.9383032]
[1659308534288,2.89804672,1678.9,1678.7,0.9383032]
[1659308534678,2.89804672,1678.9,1678.7,0.6405632]
[1659308535228,2.89804672,1678.9,1678.7,0.0595632]
[1659308535579,0.04999999,1679.1,1678.7,0.0595632]
[1659308535580,2.89804672,1679.0,1678.7,0.0595632]
[1659308535779,2.89804672,1679.0,1678.8,2.08096435]
[1659308535978,2.89804672,1679.0,1678.8,2.38096435]
[1659308536182,2.89804672,1679.0,1678.8,2.73819545]
[1659308536614,2.89804672,1679.0,1678.8,4.52439625]
[1659308536799,2.89804672,1679.0,1678.9,2.97648]
[1659308536980,2.89804672,1679.1,1678.8,4.52439625]
[1659308537178,2.89804672,1679.1,1678.9,0.29768]
[1659308537378,2.89804672,1679.1,1679.0,0.3572208]
[1659308537618,3.89804672,1679.2,1679.0,0.3572208]
[1659308538418,1.05,1679.5,1679.0,0.85193515]
[1659308538690,3.0678,1679.8,1679.2,0.2]
[1659308538691,0.05,1679.7,1679.2,0.2]
[1659308538911,3.5,1680.4,1679.4,0.2]
[1659308538912,0.05,1679.9,1679.4,0.2]
[1659308539128,0.05,1680.1,1679.5,0.29471435]
[1659308539291,1.05,1680.2,1679.5,0.65175325]
[1659308539489,1.0,1680.2,1679.5,4.24927325]
[1659308539703,1.0,1680.2,1679.5,4.19223435]
[1659308539918,1.0,1680.2,1679.5,4.39223435]
[1659308540114,1.04999999,1680.2,1679.5,4.39223435]
[1659308540328,1.04999999,1680.2,1679.6,1.5470632]
[1659308540622,1.04999999,1680.2,1679.6,0.36212913]
[1659308540826,1.04999999,1680.2,1679.6,0.65963913]
[1659308541215,2.89804672,1680.1,1679.6,0.65963913]
[1659308541812,2.89804672,1680.1,1679.7,0.29471435]
[1659308542014,2.89804672,1680.1,1679.7,0.59223205]
[1659308542598,2.89804672,1680.1,1679.7,2.37730205]
[1659308542795,2.89804672,1680.1,1679.8,0.3570149]
[1659308543039,2.89804672,1680.1,1679.8,0.6570149]
[1659308543544,2.89804672,1680.1,1679.8,0.6070149]
[1659308543695,2.89804672,1680.1,1679.9,0.6545402]
[1659308544499,2.89804672,1680.1,1679.9,3.5104654]
[1659308544849,2.89804672,1680.1,1679.5,5.16347365]
[1659308544850,0.2,1679.7,1679.5,0.05]
[1659308545134,2.89804672,1679.6,1679.1,3.2592366]
[1659308545291,0.2,1679.5,1679.1,0.0595366]
[1659308545492,2.89804672,1679.4,1679.1,0.0595366]
[1659308545732,6.39804672,1679.4,1679.1,0.0595366]
[1659308545979,2.89804672,1679.3,1679.1,0.0595366]
[1659308548344,12.62504672,1679.3,1679.1,0.0595366]
[1659308548654,6.42804672,1679.2,1679.1,0.0595366]
[1659308548859,2.89804672,1679.2,1679.1,0.0595366]
[1659308550390,12.62504672,1679.2,1678.9,0.29766]
[1659308550557,2.89804672,1679.1,1678.9,0.29766]
[1659308551146,2.89804672,1679.1,1679.0,0.0595488]
[1659308551683,3.09804672,1679.1,1679.0,0.0595488]
[1659308552240,3.09804672,1679.1,1679.0,0.3595488]
[1659308553261,12.82504672,1679.1,1679.0,0.3595488]
[1659308553510,12.82504672,1679.1,1679.0,0.0595488]
[1659308553702,12.62504672,1679.1,1679.0,0.0595488]
[1659308553849,16.12504672,1679.1,1678.7,0.357337]
[1659308554048,2.89804672,1678.9,1678.7,0.357337]